fUSD/lending_fUSD_20240930
["ID","MTS","AMOUNT","RATE_DAILY","PERIOD"]
[339606260,1727736632905,-152.74,0.0001289,2]
[339606261,1727736632915,-152.74,0.0001289,2]
[339606262,1727736632925,-152.74,0.0001289,2]
[339606263,1727736632934,-152.74,0.0001289,2]
[339606264,1727736632944,-152.74,0.0001289,2]
[339606265,1727736632954,-152.74,0.0001289,2]
[339606266,1727736632963,-152.74,0.0001289,2]
[339606267,1727736632972,-152.74,0.0001289,2]
[339606268,1727736632982,-152.74,0.0001289,2]
[339606269,1727736632991,-152.74,0.0001289,2]
[339606270,1727736633001,-152.74,0.0001289,2]
[339606271,1727736633010,-152.74,0.0001289,2]
[339606272,1727736633019,-152.74,0.0001289,2]
[339606273,1727736633029,-152.74,0.0001289,2]
[339606274,1727736633038,-152.74,0.0001289,2]
[339606275,1727736633048,-500.0,0.00012892,2]
[339606276,1727736633057,-654.46,0.00012892,2]
[339606277,1727736633067,-500.0,0.00012892,2]
[339606278,1727736633076,-561.05,0.00012892,2]
[339606279,1727736633086,-588.99,0.00012892,2]
[339606280,1727736633095,-500.0,0.00012892,2]
[339606281,1727736633105,-581.9,0.00012892,2]
[339606282,1727736633114,-500.0,0.00012892,2]
[339606283,1727736633123,-500.0,0.00012892,2]
[339606284,1727736633132,-500.0,0.00012897,2]
[339606285,1727736633142,-500.0,0.00012897,2]
[339606286,1727736633152,-500.0,0.00012897,2]
[339606287,1727736633161,-500.0,0.00012897,2]
[339606288,1727736633171,-500.0,0.00012897,2]
[339606289,1727736633181,-591.54,0.00012897,2]
[339606290,1727736633190,-500.0,0.00012898,2]
[339606291,1727736633199,-282.76621835,0.00012898,2]
[339606292,1727736633209,-500.0,0.00012898,2]
[339606293,1727736633218,-500.0,0.00012898,2]
[339606294,1727736633228,-500.0,0.00012898,2]
[339606295,1727736633237,-500.0,0.00012898,2]
[339606296,1727736633247,-236.25871167,0.00012898,2]
[339606297,1727736633267,-263.74128833,0.00012898,2]
[339606298,1727736633276,-896.26110034,0.00012899,2]
[339606299,1727736633288,-103.73889966,0.00012899,2]
[339606300,1727736633297,-377.66451911,0.00012899,2]
[339606301,1727736633307,-500.0,0.00012899,2]
[339606302,1727736633316,-500.0,0.00012899,2]
[339606303,1727736633325,-500.0,0.00012899,2]
[339606304,1727736633334,-500.0,0.00012899,2]
[339606305,1727736633343,-500.0,0.00012899,2]
[339606306,1727736633353,-301.25804384,0.00012899,2]
[339606307,1727736633365,-198.74195616,0.00012899,2]
[339606308,1727736633374,-479.51,0.00012899,2]
[339606309,1727736633383,-500.0,0.00012899,2]
[339606310,1727736633392,-500.0,0.00012899,2]
[339606311,1727736633402,-500.0,0.00012899,2]
[339606312,1727736633411,-500.0,0.00012899,2]
[339606313,1727736633423,-500.0,0.00012899,2]
[339606314,1727736633433,-500.0,0.00012899,2]
[339606315,1727736633443,-500.0,0.00012899,2]
[339606316,1727736633453,-302.42,0.00012899,2]
[339606317,1727736633462,-592.4572427,0.00012899,2]
[339606318,1727736633471,-408.21694322,0.00012899,2]
[339606319,1727736633480,-500.0,0.00012899,2]
[339606320,1727736633489,-500.0,0.00012899,2]
[339606321,1727736633499,-500.0,0.00012899,2]
[339606322,1727736633508,-500.0,0.00012899,2]
[339606323,1727736633517,-500.0,0.00012899,2]
[339606324,1727736633526,-500.0,0.00012899,2]
[339606325,1727736633535,-619.05226717,0.00012899,2]
[339606326,1727736633544,-654.46,0.00012899,2]
[339606327,1727736633554,-654.46,0.00012899,2]
[339606328,1727736633563,-379.570892,0.00012899,2]
[339606329,1727736633575,-274.889108,0.00012899,2]
[339606330,1727736633584,-510.09611657,0.00012899,2]
[339606331,1727736633596,-144.36388343,0.00012899,2]
[339606332,1727736633605,-260.13611607,0.00012899,2]
[339606333,1727736633616,-347.96815075,0.00012899,2]
[339606334,1727736633627,-46.35573318,0.00012899,2]
[339606335,1727736633637,-253.64426682,0.00012899,2]
[339606336,1727736633648,-400.81573318,0.00012899,2]
[339606337,1727736633657,-654.46,0.00012899,2]
[339606338,1727736633669,-654.46,0.00012899,2]
[339606339,1727736633679,-654.46,0.00012899,2]
[339606340,1727736633690,-654.46,0.00012899,2]
[339606341,1727736633699,-654.46,0.00012899,2]
[339606342,1727736633708,-654.46,0.00012899,2]
[339606343,1727736633718,-654.46,0.00012899,2]
[339606344,1727736633727,-654.46,0.00012899,2]
[339606345,1727736633736,-563.87600676,0.00012899,2]
[339606346,1727736633748,-90.58399324,0.00012899,2]
[339606347,1727736633758,-513.92768615,0.00012899,2]
[339606349,1727736638093,-952.80657972,0.00010859,2]
[339606350,1727736638103,-729.93480147,0.00012788,2]
[339606351,1727736638203,-1001.38999997,0.00012788,2]
[339606352,1727736638320,-759.24899239,0.00012788,2]
[339606353,1727736638332,-1118.25750284,0.00012788,2]
[339606354,1727736638342,-140.53231385,0.00012899,2]
[339606355,1727736638351,-654.46,0.00012899,2]
[339606356,1727736638361,-654.46,0.00012899,2]
[339606357,1727736638370,-252.95621559,0.00012899,2]
[339606358,1727736638382,-401.50378441,0.00012899,2]
[339606359,1727736638392,-654.46,0.00012899,2]
[339606360,1727736638401,-654.46,0.00012899,2]
[339606361,1727736638411,-654.46,0.00012899,2]
[339606362,1727736638422,-654.64447846,0.00012899,2]
[339606363,1727736638435,-500.0,0.00012899,2]
[339606364,1727736638445,-500.0,0.00012899,2]
[339606365,1727736638454,-500.0,0.00012899,2]
[339606367,1727736638464,-500.0,0.00012899,2]
[339606369,1727736638474,-619.70872951,0.00012899,2]
[339606371,1727736638483,-561.05,0.00012899,2]
[339606373,1727736638493,-561.05,0.00012899,2]
[339606375,1727736638502,-561.05,0.00012899,2]
[339606377,1727736638511,-561.05,0.00012899,2]
[339606379,1727736638521,-561.05,0.00012899,2]
[339606380,1727736638530,-561.05,0.00012899,2]
[339606382,1727736638540,-561.05,0.00012899,2]
[339606384,1727736638549,-561.05,0.00012899,2]
[339606386,1727736638559,-561.05,0.00012899,2]
[339606388,1727736638569,-561.05,0.00012899,2]
[339606390,1727736638578,-561.05,0.00012899,2]
[339606393,1727736638588,-561.05,0.00012899,2]
[339606395,1727736638598,-561.05,0.00012899,2]
[339606396,1727736638607,-561.05,0.00012899,2]
[339606398,1727736638617,-561.05,0.00012899,2]
[339606400,1727736638626,-561.05,0.00012899,2]
[339606402,1727736638635,-561.05,0.00012899,2]
[339606404,1727736638645,-561.05,0.00012899,2]
[339606406,1727736638654,-561.05,0.00012899,2]
[339606408,1727736638663,-561.05,0.00012899,2]
[339606410,1727736638675,-561.05,0.00012899,2]
[339606413,1727736638695,-561.05,0.00012899,2]
[339606415,1727736638707,-561.20905503,0.00012899,2]
[339606417,1727736638717,-588.99,0.00012899,2]
[339606419,1727736638726,-588.99,0.00012899,2]
[339606422,1727736638736,-588.99,0.00012899,2]
[339606424,1727736638746,-588.99,0.00012899,2]
[339606425,1727736638755,-588.99,0.00012899,2]
[339606427,1727736638765,-588.99,0.00012899,2]
[339606430,1727736638775,-588.99,0.00012899,2]
[339606431,1727736638784,-588.99,0.00012899,2]
[339606433,1727736638794,-588.99,0.00012899,2]
[339606435,1727736638803,-588.99,0.00012899,2]
[339606437,1727736638813,-588.99,0.00012899,2]
[339606439,1727736638822,-588.99,0.00012899,2]
[339606441,1727736638832,-588.99,0.00012899,2]
[339606443,1727736638842,-500.0,0.00012899,2]
[339606445,1727736638851,-588.99,0.00012899,2]
[339606447,1727736638861,-500.0,0.00012899,2]
[339606449,1727736638871,-588.99,0.00012899,2]
[339606451,1727736638880,-500.0,0.00012899,2]
[339606453,1727736638890,-588.99,0.00012899,2]
[339606455,1727736638900,-500.0,0.00012899,2]
[339606457,1727736638909,-588.99,0.00012899,2]
[339606459,1727736638919,-500.0,0.00012899,2]
[339606461,1727736638930,-588.99,0.00012899,2]
[339606463,1727736638939,-500.0,0.00012899,2]
[339606465,1727736638949,-588.99,0.00012899,2]
[339606467,1727736638958,-500.0,0.00012899,2]
[339606469,1727736638968,-588.99,0.00012899,2]
[339606471,1727736638978,-500.0,0.00012899,2]
[339606473,1727736638989,-588.99,0.00012899,2]
[339606474,1727736638998,-500.0,0.00012899,2]
[339606476,1727736639008,-286.35073032,0.00012899,2]
[339606478,1727736639017,-588.99,0.00012899,2]
[339606480,1727736639027,-589.11,0.00012899,2]
[339606482,1727736639037,-95.01398217,0.00012899,2]
[339606485,1727736639050,-437.94499974,0.00012899,2]
[339606487,1727736639060,-581.9,0.00012899,2]
[339606488,1727736639069,-581.9,0.00012899,2]
[339606490,1727736639079,-54.33232785,0.00012899,2]
[339606493,1727736639091,-527.56767215,0.00012899,2]
[339606495,1727736639102,-581.9,0.00012899,2]
[339606497,1727736639112,-581.9,0.00012899,2]
[339606499,1727736639121,-581.9,0.00012899,2]
[339606501,1727736639131,-581.9,0.00012899,2]
[339606503,1727736639141,-581.9,0.00012899,2]
[339606505,1727736639151,-581.9,0.00012899,2]
[339606507,1727736639160,-581.9,0.00012899,2]
[339606508,1727736639170,-581.9,0.00012899,2]
[339606510,1727736639179,-581.9,0.00012899,2]
[339606512,1727736639188,-581.9,0.00012899,2]
[339606514,1727736639198,-581.9,0.00012899,2]
[339606516,1727736639207,-581.9,0.00012899,2]
[339606518,1727736639217,-581.9,0.00012899,2]
[339606520,1727736639226,-581.9,0.00012899,2]
[339606522,1727736639239,-581.9,0.00012899,2]
[339606524,1727736639248,-581.9,0.00012899,2]
[339606526,1727736639258,-581.9,0.00012899,2]
[339606528,1727736639267,-581.9,0.00012899,2]
[339606530,1727736639278,-581.9,0.00012899,2]
[339606532,1727736639287,-582.06102083,0.00012899,2]
[339606534,1727736639297,-500.0,0.00012899,2]
[339606536,1727736639306,-500.0,0.00012899,2]
[339606538,1727736639316,-625.4664601,0.00012899,2]
[339606540,1727736639325,-500.0,0.00012899,2]
[339606542,1727736639335,-500.0,0.00012899,2]
[339606544,1727736639345,-500.0,0.00012899,2]
[339606546,1727736639355,-500.0,0.00012899,2]
[339606548,1727736639364,-500.0,0.00012899,2]
[339606550,1727736639374,-500.0,0.00012899,2]
[339606552,1727736639384,-500.0,0.00012899,2]
[339606554,1727736639394,-157.26869842,0.00012899,2]
[339606556,1727736639404,-500.0,0.00012899,2]
[339606557,1727736639413,-432.01402141,0.00012899,2]
[339606560,1727736639426,-67.98597859,0.00012899,2]
[339606561,1727736639436,-257.89402141,0.00012899,2]
[339606564,1727736639447,-242.10597859,0.00012899,2]
[339606566,1727736639457,-500.0,0.00012899,2]
[339606568,1727736639467,-132.73066465,0.00012899,2]
[339606570,1727736639479,-367.26933535,0.00012899,2]
[339606572,1727736639488,-70.09201955,0.00012899,2]
[339606639,1727736640115,-637.135,0.000128,2]
[339606661,1727736640419,-2971.69629667,0.000128,2]
[339606662,1727736640429,-429.90798045,0.00012899,2]
[339606663,1727736640439,-500.0,0.00012899,2]
[339606664,1727736640449,-500.0,0.00012899,2]
[339606665,1727736640458,-183.36152692,0.00012899,2]
[339606666,1727736640471,-316.63847308,0.00012899,2]
[339606667,1727736640480,-500.0,0.00012899,2]
[339606668,1727736640489,-500.0,0.00012899,2]
[339606669,1727736640498,-500.0,0.00012899,2]
[339606670,1727736640507,-500.0,0.00012899,2]
[339606671,1727736640517,-179.61437571,0.00012899,2]
[339606672,1727736640526,-500.0,0.00012899,2]
[339606673,1727736640535,-500.0,0.00012899,2]
[339606674,1727736640545,-500.0,0.00012899,2]
[339606675,1727736640554,-500.0,0.00012899,2]
[339606676,1727736640563,-500.0,0.00012899,2]
[339606677,1727736640573,-500.0,0.00012899,2]
[339606678,1727736640583,-500.0,0.00012899,2]
[339606679,1727736640592,-500.0,0.00012899,2]
[339606680,1727736640601,-500.0,0.00012899,2]
[339606681,1727736640611,-500.0,0.00012899,2]
[339606682,1727736640620,-500.0,0.00012899,2]
[339606683,1727736640630,-500.0,0.00012899,2]
[339606684,1727736640639,-500.0,0.00012899,2]
[339606685,1727736640648,-500.0,0.00012899,2]
[339606686,1727736640658,-500.0,0.00012899,2]
[339606687,1727736640667,-500.0,0.00012899,2]
[339606688,1727736640677,-500.0,0.00012899,2]
[339606689,1727736640687,-500.0,0.00012899,2]
[339606690,1727736640695,-500.0,0.00012899,2]
[339606691,1727736640708,-500.0,0.00012899,2]
[339606692,1727736640717,-500.0,0.00012899,2]
[339606693,1727736640726,-500.0,0.00012899,2]
[339606694,1727736640735,-500.0,0.00012899,2]
[339606695,1727736640744,-500.0,0.00012899,2]
[339606696,1727736640753,-500.0,0.00012899,2]
[339606697,1727736640763,-500.0,0.00012899,2]
[339606698,1727736640772,-500.0,0.00012899,2]
[339606699,1727736640781,-500.0,0.00012899,2]
[339606700,1727736640790,-500.0,0.00012899,2]
[339606701,1727736640799,-500.0,0.00012899,2]
[339606702,1727736640808,-500.0,0.00012899,2]
[339606703,1727736640818,-278.97,0.00012899,2]
[339606704,1727736640827,-591.54,0.00012899,2]
[339606705,1727736640837,-591.54,0.00012899,2]
[339606706,1727736640846,-591.54,0.00012899,2]
[339606707,1727736640855,-591.54,0.00012899,2]
[339606708,1727736640867,-591.54,0.00012899,2]
[339606709,1727736640876,-591.54,0.00012899,2]
[339606710,1727736640886,-591.54,0.00012899,2]
[339606711,1727736640895,-591.54,0.00012899,2]
[339606712,1727736640905,-591.54,0.00012899,2]
[339606713,1727736640914,-591.54,0.00012899,2]
[339606714,1727736640924,-591.54,0.00012899,2]
[339606715,1727736640934,-591.54,0.00012899,2]
[339606716,1727736640943,-591.54,0.00012899,2]
[339606717,1727736640952,-591.54,0.00012899,2]
[339606718,1727736640961,-591.54,0.00012899,2]
[339606719,1727736640970,-591.54,0.00012899,2]
[339606720,1727736640979,-591.54,0.00012899,2]
[339606721,1727736640989,-591.54,0.00012899,2]
[339606722,1727736640998,-591.54,0.00012899,2]
[339606723,1727736641008,-591.54,0.00012899,2]
[339606724,1727736641017,-591.54,0.00012899,2]
[339606725,1727736641026,-591.54,0.00012899,2]
[339606726,1727736641037,-591.61487035,0.00012899,2]
[339606727,1727736641046,-530.0,0.000129,2]
[339606728,1727736641056,-642.19174271,0.000129,2]
[339606729,1727736641065,-7371.40243621,0.000129,2]
[339606733,1727736643265,-17499.9821128,0.000129,2]
[339606734,1727736643278,-1156.4232372,0.000129,2]
[339606746,1727736940879,189.59,0.00013918,30]
[339606747,1727737125783,401.72,9.788e-05,2]
[339606748,1727737313328,222.0,0.00015,30]
[339606752,1727737698226,395.08,9.463e-05,2]
[339606756,1727737832179,-350.26657345,0.000109,2]
[339606757,1727737832189,-161.12,0.00010959,2]
[339606758,1727737832198,-301.55986085,0.00010986,2]
[339606759,1727737832227,-48.70671258,0.00010986,2]
[339606760,1727737832238,-1050.0,0.00011,2]
[339606761,1727737832248,-350.26657343,0.00011071,2]
[339606762,1727737832258,-250.0,0.00011171,2]
[339606763,1727737832268,-1401.02671399,0.0001129,2]
[339606764,1727737832280,-98.97328601,0.0001129,2]
[339606765,1727737832289,-498.89375198,0.00011326,2]
[339606766,1727737832302,-1503.53316802,0.00011326,2]
[339606767,1727737832311,-274.04,0.00011327,2]
[339606768,1727737832322,-166.65,0.00011352,2]
[339606769,1727737832332,-2043.2296612,0.00011352,2]
[339606770,1727737832343,-704.92261432,0.00011352,2]
[339606771,1727737832355,-53.19772448,0.00011352,2]
[339606772,1727737832364,-451.57,0.00011363,2]
[339606773,1727737832374,-346.68,0.00011403,2]
[339606774,1727737832384,-160.47,0.00011414,2]
[339606775,1727737832394,-769.69,0.00011414,2]
[339606776,1727737832404,-357.22348252,0.00011425,2]
[339606777,1727737832416,-92.34651748,0.00011425,2]
[339606778,1727737832426,-560.83572773,0.00011477,2]
[339606779,1727737832440,-189.16427227,0.00011477,2]
[339606780,1727737832450,-250.0,0.00011499,2]
[339606781,1727737832459,-2049.1,0.00011507,2]
[339606782,1727737832469,-250.0,0.00011588,2]
[339606783,1727737832479,-150.0,0.00011589,2]
[339606784,1727737832488,-1000.0,0.00011705,2]
[339606785,1727737832497,-395.08,0.00011727,2]
[339606786,1727737832508,-217.06,0.00011875,2]
[339606787,1727737832518,-1183.47,0.00012087,2]
[339606788,1727737832527,-182.65,0.00012114,2]
[339606789,1727737832536,-196.666713,0.00012237,2]
[339606791,1727737832545,-212.953111,0.00012237,2]
[339606793,1727737832555,-156.440315,0.00012237,2]
[339606795,1727737832564,-162.237099,0.00012493,2]
[339606796,1727737832573,-162.237099,0.00012493,2]
[339606797,1727737832582,-162.237099,0.00012493,2]
[339606798,1727737832592,-150.0,0.00012493,2]
[339606799,1727737832601,-1231.9446,0.000127,2]
[339606800,1727737832610,-1067.0032,0.000127,2]
[339606801,1727737832620,-740.5327649,0.000127,2]
[339606802,1727737832629,-740.53276489,0.00012711,2]
[339606803,1727737832638,-740.53276489,0.00012722,2]
[339606804,1727737832647,-1324.674,0.00012744,2]
[339606805,1727737832656,-770.93893669,0.00012771,2]
[339606806,1727737832666,-663.23654318,0.0001279,2]
[339606807,1727737832675,-150.0,0.00012795,2]
[339606808,1727737832684,-500.0,0.00012797,2]
[339606809,1727737832694,-191.36,0.00012799,2]
[339606810,1727737832703,-500.0,0.00012799,2]
[339606811,1727737832712,-405.518,0.00012799,2]
[339606812,1727737832722,-2121.8735,0.000128,2]
[339606813,1727737832731,-72090.2946026,0.000128,2]
[339606814,1727737832743,-3119.1372016,0.000128,2]
[339606815,1727737832755,-1435.23226309,0.000128,2]
[339606816,1727737832766,-920.06431593,0.000128,2]
[339606817,1727737832780,-3164.75000067,0.000128,2]
[339606818,1727737832792,-14646.21181611,0.000128,2]
[339606819,1727737832801,-1148.033,0.000128,2]
[339606820,1727737832811,-326.19198874,0.000128,2]
[339606821,1727737832820,-187.019136,0.000128,2]
[339606822,1727737832830,-193.27341524,0.000128,2]
[339606823,1727737832839,-5436.2611,0.000128,2]
[339606824,1727737832848,-82821.265,0.000128,2]
[339606825,1727737832858,-140869.4903,0.000128,2]
[339606826,1727737832867,-1210.8453,0.000128,2]
[339606827,1727737832876,-525.2863117,0.000128,2]
[339606828,1727737832885,-7500.0,0.000128,2]
[339606829,1727737832894,-193.6877291,0.000128,2]
[339606830,1727737832904,-200.84202953,0.00012873,2]
[339606831,1727737832913,-500.0,0.00012873,2]
[339606832,1727737832923,-500.0,0.00012876,2]
[339606833,1727737832932,-582.23068741,0.00012876,2]
[339606834,1727737832942,-197.44636807,0.00012889,2]
[339606835,1727737832951,-152.42,0.00012889,2]
[339606836,1727737832961,-152.42,0.0001289,2]
[339606837,1727737832970,-152.42,0.0001289,2]
[339606838,1727737832980,-152.42,0.0001289,2]
[339606839,1727737832989,-152.42,0.0001289,2]
[339606840,1727737832998,-153.8904613,0.00012895,2]
[339606841,1727737833008,-2986.3940278,0.00012895,2]
[339606842,1727737833017,-618.4989466,0.00012895,2]
[339606843,1727737833027,-599.52240919,0.00012895,2]
[339606844,1727737833037,-1920.2778027,0.00012895,2]
[339606845,1727737833046,-1425.36759219,0.00012896,2]
[339606846,1727737833056,-11402.94073752,0.00012897,2]
[339606847,1727737833065,-200790.79656582,0.00012899,2]
[339606848,1727737833240,-38198.917706,0.00012899,2]
[339606852,1727737838309,-278.51078748,0.000127,2]
[339606853,1727737838321,-721.48921252,0.000127,2]
[339606854,1727737838331,-277.99550055,0.00012733,2]
[339606855,1727737838343,-462.53726434,0.00012733,2]
[339606856,1727737838352,-116.26054191,0.00012899,2]
[339606857,1727737838364,-3181.17244625,0.00012899,2]
[339606858,1727737838489,-6810.11396904,0.00012899,2]
[339606859,1727737838500,-513.05318471,0.00012899,2]
[339606860,1727737838514,-300.0,0.00012899,2]
[339606861,1727737838525,-1989.47898931,0.00012899,2]
[339606862,1727737838636,-1606.73102151,0.00012899,2]
[339606874,1727737840277,-2861.8427249,0.00012899,2]
[339606875,1727737840441,-770.58734516,0.00012899,2]
[339606881,1727737843387,-740.53276489,0.00012744,2]
[339606882,1727737843397,-10314.50095091,0.00012899,2]
[339606883,1727737843414,-5570.89251935,0.00012899,2]
[339606884,1727737845450,-69310.0,0.00012899,2]
[339606885,1727737845462,-264.33,0.00012899,2]
[339606887,1727737846250,-944.647576,0.00012493,2]
[339606888,1727737846260,-740.53276489,0.00012756,2]
[339606889,1727737846269,-59791.20414995,0.00012899,2]
[339606890,1727737846278,-500.0,0.00012899,2]
[339606891,1727737846287,-500.0,0.00012899,2]
[339606892,1727737846296,-500.0,0.00012899,2]
[339606893,1727737846305,-454.07570493,0.00012899,2]
[339606894,1727737846317,-1000.0,0.00012899,2]
[339606895,1727737846327,-1000.0,0.00012899,2]
[339606896,1727737846336,-708.847157,0.00012899,2]
[339606897,1727737846346,-708.847157,0.00012899,2]
[339606898,1727737846355,-157.717946,0.00012899,2]
[339606899,1727737846364,-462.613491,0.00012899,2]
[339606900,1727737846375,-462.613491,0.00012899,2]
[339606901,1727737846384,-526.0,0.000129,2]
[339606902,1727737846394,-513.75339416,0.000129,2]
[339606903,1727737846403,-252172.95625184,0.000129,2]
[339606904,1727737846767,-944.647576,0.00012493,2]
[339606906,1727737846777,-840.50016245,0.00012493,2]
[339606908,1727737846789,-104.14741355,0.00012493,2]
[339606910,1727737846798,-601.72976075,0.000129,2]
[339606914,1727738253824,-9524.0932,0.00010658,2]
[339606915,1727738253848,-3300.73271406,0.000108,2]
[339606916,1727738253870,-4085.9708,0.000109,2]
[339606917,1727738253897,-89.20328594,0.00010959,2]
[339606918,1727738355913,432.97,9.582e-05,2]
[339606919,1727738718562,170.92,9.059e-05,2]
[339606920,1727738753469,4223.54358633,6.94e-05,2]
[339606932,1727738966261,-254.23719866,0.000107,2]
[339606933,1727738966285,-69.01671406,0.00010959,2]
[339606934,1727738966310,-156.23,0.00010959,2]
[339606935,1727738966337,-171.63,0.00010959,2]
[339606936,1727738966359,-858.15,0.00010959,2]
[339606937,1727738966381,-7061.08376468,0.00010998,2]
[339606938,1727738966406,-300.0,0.00010999,2]
[339606939,1727738966429,-11129.6523226,0.00011,2]
[339606947,1727739029839,796.0,9.059e-05,2]
[339606951,1727739031548,-150.98,0.00010959,2]
[339606952,1727739031559,-754.93,0.00010959,2]
[339606953,1727739031569,-0.66616039,0.00011,2]
[339606954,1727739031578,-97.81364697,0.00011,2]
[339606955,1727739031591,-52.18635303,0.00011,2]
[339606956,1727739031601,-150.0,0.00011,2]
[339606957,1727739031611,-109.97394548,0.00011,2]
[339606958,1727739031623,-40.02605452,0.00011,2]
[339606959,1727739031633,-150.0,0.00011,2]
[339606960,1727739031642,-150.0,0.00011,2]
[339606961,1727739031652,-201.586603,0.00011,2]
[339606962,1727739031661,-1050.0,0.00011,2]
[339606963,1727739031671,-774.17,0.00011232,2]
[339606964,1727739031680,-250.0,0.00011267,2]
[339606965,1727739031690,-250.0,0.00011283,2]
[339606966,1727739031700,-7451.7,0.00011394,2]
[339606967,1727739031710,-182.65,0.00011416,2]
[339606968,1727739031720,-250.0,0.00011428,2]
[339606969,1727739031729,-2751.0,0.00011507,2]
[339606970,1727739031738,-150.0,0.00011589,2]
[339606971,1727739031748,-205.7,0.00011589,2]
[339606972,1727739031757,-1592.4,0.00011589,2]
[339606973,1727739031767,-1000.0,0.00011656,2]
[339606974,1727739031776,-499.99,0.00011656,2]
[339606975,1727739031787,-1187.73,0.00011677,2]
[339606976,1727739031797,-578.95,0.00011771,2]
[339606978,1727739031806,-151.75,0.00011825,2]
[339606980,1727739031815,-432.97,0.00011846,2]
[339606982,1727739031824,-423.17,0.00011945,2]
[339606983,1727739031834,-423.17,0.00011945,2]
[339606984,1727739031842,-423.17,0.00011945,2]
[339606985,1727739031851,-423.17,0.00011945,2]
[339606986,1727739031861,-2033.4147307,0.00011955,2]
[339606987,1727739031871,-2033.4147307,0.00011955,2]
[339606988,1727739031880,-423.17,0.00012,2]
[339606989,1727739031890,-423.17,0.00012,2]
[339606990,1727739031899,-239.84,0.00012,2]
[339606991,1727739031910,-1128.88,0.00012082,2]
[339606992,1727739031919,-358.35,0.00012082,2]
[339606993,1727739031928,-423.17,0.000121,2]
[339606994,1727739031938,-423.17,0.000121,2]
[339606995,1727739031948,-313.008545,0.00012237,2]
[339606996,1727739031959,-185.911171,0.00012237,2]
[339606997,1727739031970,-180.320255,0.00012237,2]
[339606998,1727739031980,-1250.0,0.000123,2]
[339606999,1727739031989,-180.0,0.00012366,2]
[339607000,1727739031998,-9855.77220001,0.0001238,2]
[339607001,1727739032007,-313.008545,0.0001239,2]
[339607002,1727739032016,-167.5,0.00012445,2]
[339607003,1727739032026,-944.647576,0.00012493,2]
[339607004,1727739032036,-220.045489,0.00012493,2]
[339607005,1727739032045,-220.045489,0.00012493,2]
[339607006,1727739032054,-313.008545,0.00012543,2]
[339607007,1727739032064,-32269.1725,0.000126,2]
[339607008,1727739032075,-2053.0065,0.000126,2]
[339607009,1727739032085,-1975.2353,0.000126,2]
[339607010,1727739032095,-20245.3968,0.000126,2]
[339607011,1727739032105,-943.2558,0.000126,2]
[339607012,1727739032115,-177.0412,0.000126,2]
[339607013,1727739032124,-1874.1786,0.000126,2]
[339607014,1727739032135,-422.34458308,0.00012626,2]
[339607015,1727739032148,-159.93,0.00012648,2]
[339607016,1727739032159,-313.008545,0.00012696,2]
[339607017,1727739032172,-2462.79192693,0.00012699,2]
[339607018,1727739032183,-8066.0351,0.000127,2]
[339607019,1727739032193,-1000.0,0.000127,2]
[339607020,1727739032203,-83592.74019961,0.000127,2]
[339607021,1727739032222,-588.01158738,0.000127,2]
[339607022,1727739032237,-839.21568449,0.000127,2]
[339607023,1727739032251,-599.63924013,0.000127,2]